[Event "Bremer Silvester Open 2018"]
[Site "Bremen"]
[Date "2018.12.29"]
[Round "4"]
[White "Pfreundt, Jakob"]
[Black "Dettmann, Steffen"]
[Result "1/2-1/2"]
[ECO "D37"]
[WhiteElo "2373"]
[BlackElo "2201"]
[Annotator "NA"]
[PlyCount "86"]
[EventDate "2018.12.27"]
[EventType "swiss"]
[EventCountry "GER"]
[SourceTitle "playchess.com"]
[Source "ChessBase"]
[SourceQuality "1"]
[TimeControl "40/5400+30:1800+30"]

1. d4 {[%emt 0:00:24]} d5 {[%emt 0:00:00]} 2. Nf3 {[%emt 0:00:09]} Nf6 {[%emt 0:00:27]} 3. c4 {[%emt 0:00:08]} e6 {[%emt 0:00:18]} 4. Nc3 {[%emt 0:00:09]} Be7 {[%emt 0:00:08]} 5. Bf4 {[%emt 0:00:52]} O-O {[%emt 0:00:15]} 6. e3 {[%emt 0:00:08]} c5 {[%emt 0:00:12]} 7. dxc5 {[%emt 0:00:14]} Bxc5 {[%emt 0:00:12]} 8. cxd5 {[%emt 0:00:09]} Nxd5 {[%emt 0:01:02]} 9. Nxd5 {[%emt 0:00:09]} exd5 {[%emt 0:00:04]} 10. Bd3 {[%emt 0:00:11]} Bb4+ {[%emt 0:05:23]} 11. Nd2 {[%emt 0:00:38]} Nc6 {[%emt 0:08:28]} 12. O-O {[%emt 0:00:25]} Be6 {[%emt 0:04:10]} 13. Rc1 {[%emt 0:12:36]} Rc8 {[%emt 0:04:32]} 14. Nb3 {[%emt 0:09:45]} Qf6 {[%emt 0:09:47]} 15. a3 {[%emt 0:01:33]} Be7 {[%emt 0:03:19]} 16. Qd2 {[%emt 0:01:54]} g6 {[%emt 0:07:19]} 17. Be2 {[%emt 0:04:56]} Rfd8 {[%emt 0:11:49]} 18. Nd4 {[%emt 0:03:02]} Bd6 {[%emt 0:04:06]} 19. Nxc6 {[%emt 0:07:28]} bxc6 {[%emt 0:04:24]} 20. Bxd6 {[%emt 0:00:27]} Rxd6 {[%emt 0:00:19]} 21. Rc5 {[%emt 0:07:16]} h5 {[%emt 0:21:05]} 22. Rd1 {[%emt 0:21:11]} d4 {[%emt 0:03:33]} 23. exd4 {[%emt 0:20:23]} Rcd8 {[%emt 0:01:32]} 24. Qc3 {[%emt 0:03:10]} Rxd4 {[%emt 0:01:57]} 25. Rxd4 {[%emt 0:00:07]} Qxd4 {[%emt 0:01:00]} 26. h3 {[%emt 0:03:25]} Qe4 {[%emt 0:05:32]} 27. Bf3 {[%emt 0:00:40]} Qb1+ {[%emt 0:00:15]} 28. Kh2 {[%emt 0:01:09]} Rb8 {[%emt 0:02:03]} 29. b4 {[%emt 0:00:26]} Qa2 {[%emt 0:00:12]} 30. Qe3 {[%emt 0:00:48]} Bd5 {[%emt 0:00:30]} 31. Bxd5 {[%emt 0:00:43]} cxd5 {[%emt 0:00:01]} 32. Rc7 {[%emt 0:00:33]} d4 {[%emt 0:01:17]} 33. Qf3 {[%emt 0:00:36]} Qe6 {[%emt 0:00:43]} 34. Rxa7 {[%emt 0:00:36]} Kg7 {[%emt 0:00:33]} 35. Ra5 {[%emt 0:00:33]} Rd8 {[%emt 0:00:18]} 36. Qd3 {[%emt 0:00:30]} Qf6 {[%emt 0:00:22]} 37. Kg1 {[%emt 0:00:27]} Re8 {[%emt 0:00:29]} 38. Rd5 {[%emt 0:00:31]} Re1+ {[%emt 0:00:35]} 39. Kh2 {[%emt 0:00:02]} Qf4+ {[%emt 0:00:24]} 40. Qg3 {[%emt 0:00:02]} Qc1 {[%emt 0:00:11]} 41. Qd3 {[%emt 0:08:55]} Qf4+ {[%emt 0:08:23]} 42. Qg3 {[%emt 0:00:06]} Qc1 {[%emt 0:00:13]} 43. Qd3 {[%emt 0:00:05]} Qf4+ {[%emt 0:22:03]} 1/2-1/2

[Event "Bremer Silvester Open 2018"]
[Site "Bremen"]
[Date "2018.12.29"]
[Round "4"]
[White "Lammers, Markus"]
[Black "Hedke, Fred"]
[Result "1-0"]
[ECO "E14"]
[WhiteElo "2312"]
[BlackElo "2243"]
[Annotator "NA"]
[PlyCount "99"]
[EventDate "2018.12.27"]
[EventType "swiss"]
[EventCountry "GER"]
[SourceTitle "playchess.com"]
[Source "ChessBase"]
[SourceQuality "1"]
[TimeControl "40/5400+30:1800+30"]

1. Nf3 {[%emt 0:00:00]} d5 {[%emt 0:00:00]} 2. c4 {[%emt 0:00:00]} e6 {[%emt 0:00:23]} 3. d4 {[%emt 0:00:00]} Nf6 {[%emt 0:00:27]} 4. e3 {[%emt 0:00:00]} Be7 {[%emt 0:01:41]} 5. Bd3 {[%emt 0:00:55]} b6 {[%emt 0:01:10]} 6. O-O {[%emt 0:00:15]} O-O {[%emt 0:00:48]} 7. Nc3 {[%emt 0:00:15]} Bb7 {[%emt 0:00:24]} 8. Qe2 {[%emt 0:00:23]} Nbd7 {[%emt 0:04:48]} 9. Rd1 {[%emt 0:02:42]} a6 {[%emt 0:03:41]} 10. e4 {[%emt 0:07:00]} dxe4 {[%emt 0:01:58]} 11. Nxe4 {[%emt 0:01:06]} Nxe4 {[%emt 0:05:35]} 12. Bxe4 {[%emt 0:02:10]} Bxe4 {[%emt 0:01:49]} 13. Qxe4 {[%emt 0:00:07]} Nf6 {[%emt 0:12:35]} 14. Qc6 {[%emt 0:03:05]} Bd6 {[%emt 0:02:39]} 15. Be3 {[%emt 0:07:03]} Qd7 {[%emt 0:01:18]} 16. Qxd7 {[%emt 0:00:22]} Nxd7 {[%emt 0:00:08]} 17. Rac1 {[%emt 0:00:19]} Rfd8 {[%emt 0:01:35]} 18. Kf1 {[%emt 0:00:30]} Rac8 {[%emt 0:08:28]} 19. c5 {[%emt 0:06:24]} Bf8 {[%emt 0:04:22]} 20. cxb6 {[%emt 0:23:28]} cxb6 {[%emt 0:04:30]} 21. Bf4 {[%emt 0:00:06]} b5 {[%emt 0:03:20]} 22. Bc7 {[%emt 0:02:18]} Re8 {[%emt 0:00:19]} 23. Rc6 {[%emt 0:05:23]} Nf6 {[%emt 0:01:42]} 24. Rdc1 {[%emt 0:00:10]} Nd5 {[%emt 0:01:15]} 25. Bd6 {[%emt 0:08:05]} Ra8 {[%emt 0:11:44]} 26. Ne5 {[%emt 0:03:50]} Red8 {[%emt 0:02:04]} 27. Bc7 {[%emt 0:07:16]} Re8 {[%emt 0:09:22]} 28. a3 {[%emt 0:02:14]} b4 {[%emt 0:01:11]} 29. a4 {[%emt 0:00:28]} a5 {[%emt 0:05:51]} 30. Bd6 {[%emt 0:07:30]} Red8 {[%emt 0:00:44]} 31. Bxf8 {[%emt 0:01:01]} Kxf8 {[%emt 0:00:28]} 32. Nf3 {[%emt 0:02:27]} Ra7 {[%emt 0:03:48]} 33. g3 {[%emt 0:01:34]} Ne7 {[%emt 0:00:56]} 34. R6c5 {[%emt 0:01:08]} f6 {[%emt 0:00:26]} 35. g4 {[%emt 0:03:07]} Rd5 {[%emt 0:01:18]} 36. Ke2 {[%emt 0:01:00]} Rd6 {[%emt 0:01:02]} 37. R1c4 {[%emt 0:01:19]} Nd5 {[%emt 0:02:00]} 38. Rc1 {[%emt 0:00:50]} Ke7 {[%emt 0:00:26]} 39. Kd3 {[%emt 0:01:25]} Rdd7 {[%emt 0:00:54]} 40. Rc6 {[%emt 0:01:22]} b3 {[%emt 0:01:45]} 41. Ke4 {[%emt 0:01:37]} Rdb7 {[%emt 0:04:51]} 42. Nd2 {[%emt 0:05:42]} Rb4 {[%emt 0:02:44]} 43. R1c4 {[%emt 0:02:16]} Rbb7 {[%emt 0:00:30]} 44. Rc1 {[%emt 0:05:03]} Rb4 {[%emt 0:01:00]} 45. Nc4 {[%emt 0:04:46]} Rxa4 {[%emt 0:01:15]} 46. f4 {[%emt 0:00:24]} Nb4 {[%emt 0:00:50]} 47. Nb6 {[%emt 0:03:47]} Nxc6 {[%emt 0:01:45]} 48. Rxc6 {[%emt 0:00:04]} Ra6 {[%emt 0:02:15]} 49. Rc7+ {[%emt 0:00:09]} Kd6 {[%emt 0:00:57]} 50. Rd7+ {[%emt 0:12:35] Ra7 [%clk 0:00:00]} 1-0

[Event "Bremer Silvester Open 2018"]
[Site "Bremen"]
[Date "2018.12.29"]
[Round "4"]
[White "Wachinger, Nikolas"]
[Black "Grigorian, Spartak"]
[Result "1/2-1/2"]
[ECO "B51"]
[WhiteElo "2306"]
[BlackElo "2346"]
[Annotator "NA"]
[PlyCount "57"]
[EventDate "2018.12.27"]
[EventType "swiss"]
[EventCountry "GER"]
[SourceTitle "playchess.com"]
[Source "ChessBase"]
[SourceQuality "1"]
[TimeControl "40/5400+30:1800+30"]

1. e4 {[%emt 0:00:00]} c5 {[%emt 0:00:00]} 2. Nf3 {[%emt 0:00:00]} d6 {[%emt 0:01:09]} 3. Bb5+ {[%emt 0:00:11]} Nd7 {[%emt 0:00:06]} 4. d4 {[%emt 0:00:08]} cxd4 {[%emt 0:00:06]} 5. Qxd4 {[%emt 0:00:06]} a6 {[%emt 0:00:07]} 6. Bxd7+ {[%emt 0:00:14]} Qxd7 {[%emt 0:00:05]} 7. Nc3 {[%emt 0:02:57]} e5 {[%emt 0:00:15]} 8. Qd3 {[%emt 0:00:28]} f5 {[%emt 0:00:47]} 9. O-O {[%emt 0:12:25]} Nf6 {[%emt 0:00:05]} 10. Bg5 {[%emt 0:01:03]} Nxe4 {[%emt 0:00:08]} 11. Nxe4 {[%emt 0:00:06]} fxe4 {[%emt 0:00:02]} 12. Qxe4 {[%emt 0:00:13]} Qf5 {[%emt 0:00:04]} 13. Qd5 {[%emt 0:16:14]} Qf7 {[%emt 0:00:52]} 14. Qa5 {[%emt 0:03:20]} Bg4 {[%emt 0:00:04]} 15. Nd2 {[%emt 0:16:07]} Rc8 {[%emt 0:00:24]} 16. f4 {[%emt 0:03:42]} Qc7 {[%emt 0:29:34]} 17. Qxc7 {[%emt 0:07:16]} Rxc7 {[%emt 0:01:22]} 18. c3 {[%emt 0:00:11]} Be7 {[%emt 0:17:34]} 19. Bxe7 {[%emt 0:00:55]} Rxe7 {[%emt 0:01:27]} 20. Rae1 {[%emt 0:07:34]} exf4 {[%emt 0:04:46]} 21. Rxe7+ {[%emt 0:00:36]} Kxe7 {[%emt 0:00:04]} 22. Rxf4 {[%emt 0:00:10]} Be6 {[%emt 0:00:44]} 23. a3 {[%emt 0:01:55]} Rc8 {[%emt 0:02:55]} 24. Nf3 {[%emt 0:01:08]} Rc5 {[%emt 0:01:24]} 25. Nd4 {[%emt 0:00:26]} Re5 {[%emt 0:01:18]} 26. Kf2 {[%emt 0:00:33]} g6 {[%emt 0:06:13]} 27. g3 {[%emt 0:03:36]} Bd5 {[%emt 0:01:56]} 28. h4 {[%emt 0:01:11]} Rh5 {[%emt 0:10:27]} 29. Nf3 {[%emt 0:02:03]} 1/2-1/2

[Event "Bremer Silvester Open 2018"]
[Site "Bremen"]
[Date "2018.12.29"]
[Round "4"]
[White "Villwock, Martin"]
[Black "Hoeffer, David"]
[Result "0-1"]
[ECO "B00"]
[WhiteElo "2208"]
[BlackElo "2259"]
[Annotator "NA"]
[PlyCount "106"]
[EventDate "2018.12.27"]
[EventType "swiss"]
[EventCountry "GER"]
[SourceTitle "playchess.com"]
[Source "ChessBase"]
[SourceQuality "1"]
[TimeControl "40/5400+30:1800+30"]

1. e4 {[%emt 0:00:00]} Nc6 {[%emt 0:00:20]} 2. Nc3 {[%emt 0:01:06]} Nf6 {[%emt 0:01:38]} 3. d4 {[%emt 0:02:21]} d5 {[%emt 0:00:05]} 4. e5 {[%emt 0:00:54]} Nd7 {[%emt 0:00:06]} 5. e6 {[%emt 0:04:09]} fxe6 {[%emt 0:00:57]} 6. Nf3 {[%emt 0:02:16]} g6 {[%emt 0:03:32]} 7. h4 {[%emt 0:02:03]} Bg7 {[%emt 0:07:16]} 8. h5 {[%emt 0:01:51]} Nf8 {[%emt 0:00:38]} 9. hxg6 {[%emt 0:06:11]} hxg6 {[%emt 0:01:40]} 10. Rxh8 {[%emt 0:00:34]} Bxh8 {[%emt 0:00:05]} 11. Bh6 {[%emt 0:02:43]} a6 {[%emt 0:11:40]} 12. Qd2 {[%emt 0:03:41]} Kd7 {[%emt 0:04:54]} 13. O-O-O {[%emt 0:05:26]} Nh7 {[%emt 0:07:33]} 14. g3 {[%emt 0:03:19]} Qg8 {[%emt 0:01:46]} 15. Bh3 {[%emt 0:01:31]} Kd8 {[%emt 0:00:13]} 16. Re1 {[%emt 0:06:52]} Bf6 {[%emt 0:04:28]} 17. Bg5 {[%emt 0:08:17]} Bd7 {[%emt 0:09:12]} 18. Ne2 {[%emt 0:12:41]} Kc8 {[%emt 0:03:52]} 19. c4 {[%emt 0:03:50]} dxc4 {[%emt 0:03:36]} 20. Bxf6 {[%emt 0:03:25]} exf6 {[%emt 0:00:59]} 21. d5 {[%emt 0:00:50]} exd5 {[%emt 0:01:44]} 22. Bxd7+ {[%emt 0:00:23]} Kxd7 {[%emt 0:00:04]} 23. Nf4 {[%emt 0:01:49]} Re8 {[%emt 0:22:08]} 24. Rxe8 {[%emt 0:01:02]} Kxe8 {[%emt 0:00:06]} 25. Nxd5 {[%emt 0:00:54]} Qf7 {[%emt 0:00:20]} 26. Qe2+ {[%emt 0:03:12]} Kf8 {[%emt 0:00:37]} 27. Qxc4 {[%emt 0:00:16]} Ne7 {[%emt 0:04:52]} 28. Ne3 {[%emt 0:00:30]} Qxc4+ {[%emt 0:00:04]} 29. Nxc4 {[%emt 0:00:05]} Kf7 {[%emt 0:00:37]} 30. Nd4 {[%emt 0:01:09]} Ng5 {[%emt 0:00:36]} 31. Kd2 {[%emt 0:00:59]} Ne6 {[%emt 0:00:32]} 32. Nc2 {[%emt 0:01:17]} b5 {[%emt 0:00:46]} 33. Na5 {[%emt 0:00:29]} c5 {[%emt 0:00:20]} 34. Nb7 {[%emt 0:01:16]} Ke8 {[%emt 0:01:40]} 35. Nd6+ {[%emt 0:00:48]} Kd7 {[%emt 0:00:05]} 36. Ne4 {[%emt 0:00:10]} f5 {[%emt 0:00:14]} 37. Nf6+ {[%emt 0:00:16]} Kd6 {[%emt 0:00:16]} 38. Ne8+ {[%emt 0:01:02]} Kd7 {[%emt 0:00:04]} 39. Nf6+ {[%emt 0:00:07]} Kd6 {[%emt 0:00:03]} 40. Ne8+ {[%emt 0:00:06]} Ke5 {[%emt 0:00:04]} 41. f4+ {[%emt 0:30:22]} Kd5 {[%emt 0:34:59]} 42. Nf6+ {[%emt 0:02:18]} Kc6 {[%emt 0:00:57]} 43. Ne3 {[%emt 0:01:16]} a5 {[%emt 0:00:34]} 44. a4 {[%emt 0:03:15]} Nd4 {[%emt 0:02:40]} 45. axb5+ {[%emt 0:00:39]} Kxb5 {[%emt 0:00:05]} 46. Ne8 {[%emt 0:00:52]} Kb4 {[%emt 0:01:32]} 47. Nd6 {[%emt 0:00:49]} a4 {[%emt 0:01:11]} 48. Ndc4 {[%emt 0:04:31]} Nd5 {[%emt 0:00:00]} 49. Nxd5+ {[%emt 0:00:00]} Kxc4 {[%emt 0:00:00]} 50. Ne7 {[%emt 0:00:00]} Kb3 {[%emt 0:00:00]} 51. Kc1 {[%emt 0:00:00]} c4 {[%emt 0:00:00]} 52. Nxg6 {[%emt 0:00:00]} c3 {[%emt 0:00:00]} 53. bxc3 {[%emt 0:00:00]} a3 {[%emt 0:00:00]} 0-1

[Event "Bremer Silvester Open 2018"]
[Site "Bremen"]
[Date "2018.12.29"]
[Round "4"]
[White "Schroeter, Baldur"]
[Black "Margraf, Daniel"]
[Result "0-1"]
[ECO "C22"]
[WhiteElo "2032"]
[BlackElo "2261"]
[Annotator "NA"]
[PlyCount "96"]
[EventDate "2018.12.27"]
[EventType "swiss"]
[EventCountry "GER"]
[SourceTitle "playchess.com"]
[Source "ChessBase"]
[SourceQuality "1"]
[TimeControl "40/5400+30:1800+30"]

1. e4 {[%emt 0:00:00]} e5 {[%emt 0:00:40]} 2. d4 {[%emt 0:00:00]} exd4 {[%emt 0:00:44]} 3. Qxd4 {[%emt 0:00:00]} Nc6 {[%emt 0:01:34]} 4. Qe3 {[%emt 0:00:00]} g6 {[%emt 0:01:23]} 5. Nc3 {[%emt 0:00:12]} Bg7 {[%emt 0:00:11]} 6. Bd2 {[%emt 0:00:05]} Nge7 {[%emt 0:00:36]} 7. O-O-O {[%emt 0:03:03]} O-O {[%emt 0:00:11]} 8. Kb1 {[%emt 0:06:46]} d5 {[%emt 0:00:36]} 9. exd5 {[%emt 0:03:47]} Nxd5 {[%emt 0:01:58]} 10. Nxd5 {[%emt 0:01:59]} Qxd5 {[%emt 0:00:11]} 11. Qb3 {[%emt 0:05:21]} Qf5 {[%emt 0:04:13]} 12. Nf3 {[%emt 0:02:32]} Be6 {[%emt 0:01:28]} 13. Bc4 {[%emt 0:03:40]} Na5 {[%emt 0:02:15]} 14. Bxe6 {[%emt 0:02:53]} fxe6 {[%emt 0:02:29]} 15. Bxa5 {[%emt 0:12:54]} Qxa5 {[%emt 0:00:11]} 16. h4 {[%emt 0:03:49]} Kh8 {[%emt 0:04:43]} 17. Rhe1 {[%emt 0:13:50]} Qc5 {[%emt 0:06:04]} 18. Ng5 {[%emt 0:06:10]} Qxf2 {[%emt 0:06:43]} 19. Nxe6 {[%emt 0:00:12]} Rae8 {[%emt 0:05:50]} 20. Qb4 {[%emt 0:00:54]} Rf7 {[%emt 0:09:44]} 21. Nxg7 {[%emt 0:01:37]} Rxe1 {[%emt 0:00:44]} 22. Qxe1 {[%emt 0:04:03]} Kxg7 {[%emt 0:01:43]} 23. Qe5+ {[%emt 0:00:22]} Qf6 {[%emt 0:00:39]} 24. Qxf6+ {[%emt 0:01:00]} Kxf6 {[%emt 0:02:59]} 25. c3 {[%emt 0:06:29]} Ke6 {[%emt 0:03:04]} 26. Re1+ {[%emt 0:01:23]} Kd5 {[%emt 0:01:35]} 27. g4 {[%emt 0:01:29]} c5 {[%emt 0:02:21]} 28. h5 {[%emt 0:09:56]} g5 {[%emt 0:04:17]} 29. Re8 {[%emt 0:02:00]} h6 {[%emt 0:01:17]} 30. Rh8 {[%emt 0:02:00]} Rf6 {[%emt 0:03:30]} 31. Rh7 {[%emt 0:00:03]} b6 {[%emt 0:09:01]} 32. Rxa7 {[%emt 0:01:02]} Ke5 {[%emt 0:04:00]} 33. Rg7 {[%emt 0:00:29]} b5 {[%emt 0:02:13]} 34. b3 {[%emt 0:02:24]} b4 {[%emt 0:01:11]} 35. c4 {[%emt 0:01:37]} Kd4 {[%emt 0:00:46]} 36. Kc2 {[%emt 0:00:58]} Rf2+ {[%emt 0:00:12]} 37. Kd1 {[%emt 0:00:06]} Rxa2 {[%emt 0:00:37]} 38. Rf7 {[%emt 0:01:12]} Rg2 {[%emt 0:00:34]} 39. Rf6 {[%emt 0:00:22]} Rxg4 {[%emt 0:00:32]} 40. Rxh6 {[%emt 0:00:05]} Kc3 {[%emt 0:01:11]} 41. Rc6 {[%emt 0:30:14]} Kxb3 {[%emt 0:30:20]} 42. Rxc5 {[%emt 0:00:12]} Kc3 {[%emt 0:00:38]} 43. h6 {[%emt 0:00:15]} b3 {[%emt 0:02:07]} 44. h7 {[%emt 0:02:06]} Rg1+ {[%emt 0:00:44]} 45. Ke2 {[%emt 0:00:03]} Rh1 {[%emt 0:00:19]} 46. Rxg5 {[%emt 0:00:03]} Rxh7 {[%emt 0:00:28]} 47. Rb5 {[%emt 0:00:52]} b2 {[%emt 0:00:46]} 48. c5 {[%emt 0:00:10]} Kc2 {[%emt 0:04:41]} 0-1

[Event "Bremer Silvester Open 2018"]
[Site "Bremen"]
[Date "2018.12.29"]
[Round "4"]
[White "Buescher, Andre"]
[Black "Polster, Christian"]
[Result "1-0"]
[ECO "B06"]
[WhiteElo "2018"]
[BlackElo "2306"]
[Annotator "NA"]
[PlyCount "81"]
[EventDate "2018.12.27"]
[EventType "swiss"]
[EventCountry "GER"]
[SourceTitle "playchess.com"]
[Source "ChessBase"]
[SourceQuality "1"]
[TimeControl "40/5400+30:1800+30"]

1. e4 {[%emt 0:00:00]} g6 {[%emt 0:00:06]} 2. d4 {[%emt 0:00:13]} Bg7 {[%emt 0:00:05]} 3. Nc3 {[%emt 0:00:38]} d6 {[%emt 0:00:13]} 4. Be3 {[%emt 0:01:17]} a6 {[%emt 0:01:32]} 5. a4 {[%emt 0:01:18]} Nd7 {[%emt 0:00:43]} 6. Nf3 {[%emt 0:02:16]} Ngf6 {[%emt 0:01:39]} 7. h3 {[%emt 0:02:23]} O-O {[%emt 0:00:29]} 8. Qd2 {[%emt 0:01:42]} b6 {[%emt 0:03:24]} 9. Bd3 {[%emt 0:01:29]} Bb7 {[%emt 0:00:29]} 10. O-O {[%emt 0:01:09]} c5 {[%emt 0:08:14]} 11. d5 {[%emt 0:02:05]} Ne8 {[%emt 0:02:13]} 12. Bh6 {[%emt 0:01:42]} Ne5 {[%emt 0:02:02]} 13. Nxe5 {[%emt 0:01:58]} dxe5 {[%emt 0:00:06]} 14. Bxg7 {[%emt 0:05:03]} Kxg7 {[%emt 0:00:37]} 15. Qg5 {[%emt 0:01:13]} f6 {[%emt 0:01:21]} 16. Qe3 {[%emt 0:01:12]} Nd6 {[%emt 0:04:41]} 17. Rad1 {[%emt 0:07:51]} Qc7 {[%emt 0:02:18]} 18. Be2 {[%emt 0:03:41]} Bc8 {[%emt 0:03:44]} 19. f4 {[%emt 0:04:06]} Nf7 {[%emt 0:05:33]} 20. d6 {[%emt 0:08:27]} exd6 {[%emt 0:01:38]} 21. Nd5 {[%emt 0:11:30]} Qd8 {[%emt 0:01:11]} 22. f5 {[%emt 0:01:14]} gxf5 {[%emt 0:10:45]} 23. exf5 {[%emt 0:00:59]} Bb7 {[%emt 0:00:30]} 24. Qb3 {[%emt 0:02:32]} Bxd5 {[%emt 0:04:29]} 25. Rxd5 {[%emt 0:00:53]} Qc7 {[%emt 0:01:49]} 26. Rfd1 {[%emt 0:02:01]} Qd7 {[%emt 0:07:00]} 27. Bh5 {[%emt 0:12:21]} Qxf5 {[%emt 0:04:08]} 28. Bxf7 {[%emt 0:00:12]} Rxf7 {[%emt 0:00:06]} 29. Rxd6 {[%emt 0:00:30]} b5 {[%emt 0:04:52]} 30. Qd5 {[%emt 0:04:29]} Qc8 {[%emt 0:13:41]} 31. Rc6 {[%emt 0:05:26]} Qf8 {[%emt 0:04:33]} 32. axb5 {[%emt 0:03:08]} axb5 {[%emt 0:00:10]} 33. Rxc5 {[%emt 0:02:09]} Rd8 {[%emt 0:00:39]} 34. Qxd8 {[%emt 0:02:43]} Qxc5+ {[%emt 0:00:09]} 35. Kh2 {[%emt 0:00:21]} Qxc2 {[%emt 0:03:27]} 36. Rd3 {[%emt 0:00:43]} Qxb2 {[%emt 0:02:08]} 37. Rg3+ {[%emt 0:00:22]} Kh6 {[%emt 0:00:11]} 38. Qg8 {[%emt 0:00:54]} Qa2 {[%emt 0:01:31]} 39. Rg4 {[%emt 0:01:20]} Kh5 {[%emt 0:00:18]} 40. Rh4+ {[%emt 0:00:11]} Kxh4 {[%emt 0:00:43]} 41. Qg4# {[%emt 0:30:09]} 1-0

[Event "Bremer Silvester Open 2018"]
[Site "Bremen"]
[Date "2018.12.29"]
[Round "5"]
[White "Grigorian, Spartak"]
[Black "Bart, Simon"]
[Result "1/2-1/2"]
[ECO "D31"]
[WhiteElo "2346"]
[BlackElo "2072"]
[Annotator "NA"]
[PlyCount "116"]
[EventDate "2018.12.27"]
[EventType "swiss"]
[EventCountry "GER"]
[SourceTitle "playchess.com"]
[Source "ChessBase"]
[SourceQuality "1"]
[TimeControl "40/5400+30:1800+30"]

1. d4 {[%emt 0:00:00]} d5 {[%emt 0:00:00]} 2. c4 {[%emt 0:00:13]} e6 {[%emt 0:00:00]} 3. Nc3 {[%emt 0:00:06]} c6 {[%emt 0:00:00]} 4. e4 {[%emt 0:01:00]} dxe4 {[%emt 0:00:41]} 5. Nxe4 {[%emt 0:00:02]} Bb4+ {[%emt 0:00:09]} 6. Nc3 {[%emt 0:03:59]} c5 {[%emt 0:00:21]} 7. Nf3 {[%emt 0:00:14]} Nf6 {[%emt 0:00:29]} 8. Be3 {[%emt 0:01:58]} Nc6 {[%emt 0:00:31]} 9. dxc5 {[%emt 0:06:48]} Qa5 {[%emt 0:07:45]} 10. Nd2 {[%emt 0:27:54]} Bxc3 {[%emt 0:16:03]} 11. bxc3 {[%emt 0:00:02]} Qxc3 {[%emt 0:04:53]} 12. Be2 {[%emt 0:00:07]} O-O {[%emt 0:08:01]} 13. O-O {[%emt 0:00:12]} e5 {[%emt 0:05:26]} 14. Bg5 $11 {[%emt 0:09:53]} Bf5 {[%emt 0:11:48]} 15. Qc1 {[%emt 0:04:23]} Nd4 {[%emt 0:08:04]} 16. Bd1 {[%emt 0:00:33]} Qb4 {[%emt 0:09:23]} 17. Nb3 {[%emt 0:05:43]} Ne4 {[%emt 0:01:37]} 18. a3 {[%emt 0:01:51]} Qxb3 {[%emt 0:01:19]} 19. Bxb3 {[%emt 0:01:23]} Ne2+ {[%emt 0:00:05]} 20. Kh1 {[%emt 0:00:22]} Nxc1 {[%emt 0:00:13]} 21. Bxc1 {[%emt 0:00:04]} Nxc5 {[%emt 0:00:16]} 22. Ba2 {[%emt 0:01:58]} Rfd8 {[%emt 0:06:26]} 23. Be3 {[%emt 0:00:31]} Rac8 {[%emt 0:00:57]} 24. h3 {[%emt 0:02:55]} b6 {[%emt 0:00:44]} 25. Rfe1 {[%emt 0:06:40]} Nd3 {[%emt 0:03:36]} 26. Re2 {[%emt 0:00:42]} Be6 {[%emt 0:00:47]} 27. Rc2 {[%emt 0:00:40]} f5 {[%emt 0:01:00]} 28. f3 {[%emt 0:00:43]} Rd7 {[%emt 0:03:42]} 29. Rc3 {[%emt 0:05:46]} e4 {[%emt 0:00:58]} 30. fxe4 {[%emt 0:00:35]} fxe4 {[%emt 0:00:05]} 31. a4 {[%emt 0:01:42]} Rdc7 {[%emt 0:06:33]} 32. a5 {[%emt 0:02:11]} bxa5 {[%emt 0:00:19]} 33. c5 {[%emt 0:00:44]} Bxa2 {[%emt 0:00:19]} 34. Rxa2 {[%emt 0:00:29]} Nxc5 {[%emt 0:01:41]} 35. Rxa5 {[%emt 0:01:17]} Nd3 {[%emt 0:00:54]} 36. Rca3 {[%emt 0:01:37]} Nb4 {[%emt 0:00:54]} 37. R3a4 {[%emt 0:03:06]} Rc4 {[%emt 0:00:18]} 38. Bxa7 {[%emt 0:05:17]} Nc2 {[%emt 0:00:30]} 39. Rxc4 {[%emt 0:01:33]} Rxc4 {[%emt 0:00:05]} 40. Kg1 {[%emt 0:00:36]} Kf7 {[%emt 0:00:57]} 41. Kf1 {[%emt 0:34:01]} Rc3 {[%emt 0:06:11]} 42. Re5 {[%emt 0:00:00]} Rc7 {[%emt 0:01:50]} 43. Ra5 {[%emt 0:00:00]} e3 {[%emt 0:02:43]} 44. Rc5 {[%emt 0:00:00]} Rxa7 {[%emt 0:02:08]} 45. Rxc2 {[%emt 0:00:00]} Ra3 {[%emt 0:01:48]} 46. Ke2 {[%emt 0:00:00]} g5 {[%emt 0:00:36]} 47. Kf3 {[%emt 0:00:00]} e2+ {[%emt 0:01:47]} 48. Kxe2 {[%emt 0:00:00]} Kg6 {[%emt 0:00:18]} 49. Rc6+ {[%emt 0:00:00]} Kf5 {[%emt 0:01:42]} 50. Rc5+ {[%emt 0:00:57]} Kg6 {[%emt 0:00:15]} 51. Re5 {[%emt 0:00:28]} h5 {[%emt 0:00:10]} 52. Kf2 {[%emt 0:02:33]} h4 {[%emt 0:00:10]} 53. Re3 {[%emt 0:00:36]} Ra2+ {[%emt 0:00:07]} 54. Kf3 {[%emt 0:00:06]} Ra4 {[%emt 0:00:35]} 55. Re4 {[%emt 0:00:23]} Ra3+ {[%emt 0:00:04]} 56. Re3 {[%emt 0:00:04]} Ra4 {[%emt 0:00:04]} 57. Re4 {[%emt 0:00:04]} Ra3+ {[%emt 0:00:05]} 58. Re3 {[%emt 0:00:03]} Ra4 {[%emt 0:00:19] Ke4 [%clk 0:00:00]} 1/2-1/2